bitfinex/quotes_ETHUSD_20250605
["timestamp","ask_amount","ask_price","bid_price","bid_amount"]
[1749158945644,14.98031211,2420.0,2419.9,40.20189039]
[1749158945850,8.319,2421.6,2419.9,40.20189039]
[1749158945851,8.319,2421.6,2421.5,4.12967169]
[1749158946054,8.319,2421.6,2421.5,20.12967169]
[1749158946239,1.5944,2422.2,2422.1,4.12864869]
[1749158946565,9.9124,2422.2,2422.1,4.12864869]
[1749158949355,9.9124,2422.2,2421.4,4.12984224]
[1749158949356,10.90364,2422.2,2421.4,4.12984224]
[1749158949518,10.90364,2422.2,2421.9,4.12898831]
[1749158949713,1.090364,2422.1,2421.9,4.12898831]
[1749158949946,1.5668,2422.0,2421.8,4.12908665]
[1749158950151,8.313,2421.9,2421.8,4.12908665]
[1749158950548,1.5668,2421.8,2421.7,4.1291823]
[1749158950717,1.5668,2421.8,2421.0,16.0]
[1749158950919,2.55478,2421.8,2421.6,4.12942023]
[1749158951122,2.55478,2421.8,2421.7,4.12933063]
[1749158951322,1.5668,2421.8,2421.7,20.12933063]
[1749158951623,67.48124473,2421.0,2420.9,4.13068378]
[1749158952224,75.79124473,2421.0,2420.9,4.13068378]
[1749158953062,79.89793658,2421.0,2420.9,4.13068378]
[1749158953426,79.89793658,2421.0,2419.4,4.13325617]
[1749158953427,1.5843,2420.8,2419.4,4.13325617]
[1749158953629,1.5843,2420.6,2419.7,4.13267235]
[1749158953830,74.31993658,2421.0,2419.4,4.13315913]
[1749158953831,1.5843,2420.4,2419.4,4.13315913]
[1749158954145,8.308,2420.3,2420.0,4.13214769]
[1749158954350,1.5843,2420.4,2419.1,0.54221428]
[1749158954535,1.5843,2420.4,2420.3,4.1317192]
[1749158954727,9.8913,2420.4,2420.3,4.1317192]
[1749158955763,9.8903,2420.4,2420.3,20.1317192]
[1749158956122,1.5843,2420.4,2420.3,20.1317192]
[1749158956327,9.8903,2420.4,2420.3,20.1317192]
[1749158956768,8.306,2420.4,2420.3,20.1317192]
[1749158957252,1.5843,2420.7,2420.6,4.13120713]
[1749158957451,9.8893,2420.7,2420.6,4.13120713]
[1749158957662,70.21324473,2421.0,2420.6,4.13120713]
[1749158957663,69.06554473,2421.0,2420.9,4.13069519]
[1749158957866,77.37054473,2421.0,2420.9,4.13069519]
[1749158958062,69.06554473,2421.0,2420.9,4.13069519]
[1749158958227,67.48124473,2421.0,2420.9,20.13069519]
[1749158959869,75.78424473,2421.0,2420.9,20.13069519]
[1749158961458,67.48124473,2421.0,2420.9,24.83035719]
[1749158961661,67.48124473,2421.0,2420.9,24.32950119]
[1749158962062,67.48124473,2421.0,2420.9,23.79550119]
[1749158962442,67.48124473,2421.0,2420.9,23.52384019]
[1749158962647,67.48124473,2421.0,2420.9,23.01984019]
[1749158966941,67.48124473,2421.0,2420.9,23.61859519]
[1749158968681,67.48124473,2421.0,2420.9,10.34959519]
[1749158969283,67.48124473,2421.0,2420.9,26.44441719]
[1749158969588,67.48124473,2421.0,2420.9,22.86169519]
[1749158970261,67.48124473,2421.0,2420.9,26.09258019]
[1749158970781,75.77124473,2421.0,2420.9,22.86169519]
[1749158971082,75.77124473,2421.0,2420.9,26.83259119]
[1749158971289,75.77124473,2421.0,2420.9,26.28372219]
[1749158971651,67.48124473,2421.0,2420.9,26.07669519]
[1749158972051,67.48124473,2421.0,2420.9,25.21579519]
[1749158972556,67.48124473,2421.0,2420.9,25.28519419]
[1749158972761,67.48124473,2421.0,2420.9,22.86169519]
[1749158972962,67.48124473,2421.0,2420.9,27.72331819]
[1749158973365,67.48124473,2421.0,2420.9,22.86169519]
[1749158973547,67.48124473,2421.0,2420.9,25.12566419]
[1749158973780,67.48124473,2421.0,2420.9,26.56156419]
[1749158973963,67.48124473,2421.0,2420.9,22.86169519]
[1749158974551,67.48124473,2421.0,2420.9,24.92366419]
[1749158974751,67.48124473,2421.0,2420.9,27.08479519]
[1749158974992,67.48124473,2421.0,2420.9,26.85779419]
[1749158975151,67.48124473,2421.0,2420.9,26.39766419]
[1749158975556,67.48124473,2421.0,2420.9,22.86169519]
[1749158975770,67.48124473,2421.0,2420.9,27.42079519]
[1749158975973,75.76524473,2421.0,2420.9,6.84169519]
[1749158976155,75.76524473,2421.0,2420.9,9.55169519]
[1749158976355,67.48124473,2421.0,2420.9,9.55169519]
[1749158976593,75.76424473,2421.0,2420.9,9.55169519]
[1749158977981,75.76424473,2421.0,2420.9,6.84069519]
[1749158978155,75.76424473,2421.0,2420.9,10.52589519]
[1749158978362,75.76424473,2421.0,2420.9,4.13069519]
[1749158979060,77.33494473,2421.0,2420.9,4.13069519]
[1749158979462,81.44163658,2421.0,2420.9,4.13069519]
[1749158981391,77.33494473,2421.0,2420.9,4.13069519]
[1749158981607,69.05194473,2421.0,2420.9,4.13069519]
[1749158981806,77.32994473,2421.0,2420.9,4.13069519]
[1749158982007,69.05194473,2421.0,2420.9,4.13069519]
[1749158982210,77.32894473,2421.0,2420.9,4.13069519]
[1749158982701,77.27894473,2421.0,2420.9,4.13069519]
[1749158983484,69.00194473,2421.0,2420.9,4.13069519]
[1749158983861,77.27694473,2421.0,2420.9,4.13069519]
[1749158986999,77.27494473,2421.0,2420.9,4.13069519]
[1749158988567,77.27294473,2421.0,2420.9,4.13069519]
[1749158994721,63.30054954,2420.9,2420.8,4.1308233]
[1749158997192,67.40724139,2420.9,2420.8,4.1308233]
[1749158997394,63.30054954,2420.9,2420.8,4.1308233]
[1749158998783,71.55954954,2420.9,2420.8,4.1308233]
[1749159001334,50.90767141,2420.5,2420.4,4.1315485]
[1749159001482,59.16367141,2420.5,2420.4,4.1315485]
[1749159002382,59.16367141,2420.5,2420.0,4.13213976]
[1749159002383,60.74117141,2420.5,2419.7,4.13274372]
[1749159002583,60.74117141,2420.5,2420.3,4.13160083]
[1749159002584,64.84786326,2420.5,2420.3,4.13160083]
[1749159002784,1.5775,2420.4,2420.1,4.13197231]
[1749159003020,1.5775,2420.4,2419.4,4.1330947]
[1749159003021,1.5775,2420.2,2419.8,4.13252796]
[1749159003194,8.254,2420.1,2419.7,4.13266577]
[1749159003400,8.254,2420.1,2419.6,4.13280837]
[1749159003401,1.5622,2420.0,2419.6,4.13280837]
[1749159003599,1.5622,2420.0,2419.0,4.13381726]
[1749159003600,8.253,2419.9,2419.7,4.13267031]
[1749159003804,8.253,2419.9,2418.7,8.24999857]
[1749159003805,1.5622,2419.8,2418.7,8.24999857]
[1749159004047,9.23452,2419.7,2419.4,4.13317959]
[1749159004341,1.5622,2419.6,2419.3,4.13331258]
[1749159004856,1.5622,2419.6,2419.4,4.13321615]
[1749159005044,1.5622,2419.6,2418.7,4.13445239]
[1749159005190,1.5622,2419.6,2418.7,10.0]
[1749159005389,1.5622,2419.6,2418.7,4.13445239]
[1749159005620,1.5622,2419.6,2419.3,4.13334399]
[1749159005818,1.5622,2419.6,2419.3,4.13329351]
[1749159005819,2.913072,2419.6,2419.3,4.13329351]
[1749159006022,13.13030698,2419.6,2418.7,4.13445239]
[1749159006337,13.13030698,2419.6,2418.3,8.25063319]
[1749159006338,1.6504,2419.5,2419.1,4.13374305]
[1749159006497,1.6504,2419.3,2419.0,4.13382304]
[1749159006697,3.30463115,2419.3,2419.0,4.13382304]
[1749159006901,3.30463115,2419.3,2418.0,6.82353327]
[1749159007212,3.30463115,2419.3,2418.8,4.13425154]
[1749159007421,3.30463115,2419.3,2417.8,15.44450591]
[1749159007422,16.2,2418.5,2416.8,4.10198261]
[1749159007758,16.2,2418.5,2416.0,27.00772567]
[1749159007759,1.6504,2417.5,2416.3,4.13855895]
[1749159007909,8.25,2417.4,2416.9,4.13744281]
[1749159008105,1.5937,2417.3,2416.7,4.1377183]
[1749159008346,2.4187,2417.3,2416.1,4.13890153]
[1749159008514,2.4187,2417.3,2416.8,4.13754791]
[1749159008853,2.50227059,2417.2,2416.8,4.13754791]
[1749159009209,2.50227059,2417.2,2416.8,4.13765066]
[1749159009210,8.25,2417.1,2416.8,4.13765066]
[1749159009514,8.25,2417.1,2416.7,4.13779638]
[1749159009719,8.25,2417.1,2416.6,4.13796737]
[1749159010041,9.73055738,2417.1,2416.9,4.13744048]
[1749159010242,9.73055738,2417.1,2416.2,4.13863172]
[1749159010545,9.73055738,2417.1,2416.3,10.0]
[1749159010755,9.73055738,2417.1,2416.7,4.13771478]
[1749159011217,1.6061,2417.0,2415.9,4.13924008]
[1749159011424,2.57915574,2417.0,2416.6,4.13795583]
[1749159011850,2.57915574,2417.0,2416.6,4.08795583]
[1749159012044,2.57915574,2417.0,2416.5,4.13813152]
[1749159012410,1.08291557,2416.9,2416.5,4.13813152]
[1749159013121,1.08291557,2416.9,2415.7,11.79383498]
[1749159013337,8.249,2416.8,2415.7,11.79383498]
[1749159013515,8.249,2416.8,2416.6,4.13788676]
[1749159014526,8.249,2416.8,2416.6,4.13796278]
[1749159014728,8.249,2416.8,2416.7,4.13787396]
[1749159014948,8.249,2416.8,2416.6,4.13800096]
[1749159015555,8.249,2416.8,2416.7,4.13787396]
[1749159016153,8.249,2416.8,2416.5,4.13815966]
[1749159016365,8.249,2416.8,2416.7,4.13787396]
[1749159017991,1.6061,2417.0,2416.9,4.13753154]
[1749159018156,9.8551,2417.0,2416.9,4.13753154]
[1749159021281,1.5179,2417.7,2417.1,4.13709159]
[1749159021581,1.5179,2417.7,2416.5,4.13817785]
[1749159021582,9.12152879,2417.6,2416.5,4.13817785]
[1749159021760,8.246,2417.5,2417.2,4.1369051]
[1749159021957,0.87552879,2417.6,2417.3,4.13683014]
[1749159022160,8.245,2417.4,2417.3,4.13683014]
[1749159022776,8.245,2417.4,2417.2,4.13691812]
[1749159022987,9.42625288,2417.4,2416.5,4.13817785]
[1749159023396,9.42625288,2417.4,2416.3,4.1384472]
[1749159023596,9.42625288,2417.4,2417.3,4.13684689]
[1749159023597,8.245,2417.4,2417.3,4.13684689]
[1749159024156,8.245,2417.4,2417.1,4.13709692]
[1749159024393,8.245,2417.4,2417.3,4.13684689]
[1749159024894,1.5179,2417.7,2417.6,4.13633355]
[1749159025187,8.243,2417.7,2417.6,4.13633355]
[1749159025394,10.5008,2418.0,2417.9,4.13582033]
[1749159025689,9.8148,2418.0,2417.0,4.13736036]
[1749159025890,9.7648,2418.0,2416.7,5.65715465]
[1749159026056,4.13590713,2417.9,2417.4,4.13653162]
[1749159026256,1.23779071,2417.8,2417.4,4.13653162]
[1749159026784,1.23779071,2417.8,2417.3,4.13679725]
[1749159026785,1.23779071,2417.8,2417.1,4.13718919]
[1749159026989,1.23779071,2417.8,2417.6,4.13631899]
[1749159027185,12.377735,2418.0,2417.5,4.13639212]
[1749159028583,12.37770227,2418.0,2417.5,4.13639212]
[1749159028983,1.5728,2417.8,2417.5,4.13639212]
[1749159029178,1.5728,2417.8,2417.6,4.13633338]
[1749159029698,8.239,2417.7,2417.4,4.13660346]
[1749159030091,0.38495121,2417.6,2417.4,4.13660346]
[1749159030320,0.38495121,2417.5,2417.4,4.13660346]
[1749159030520,0.38499886,2417.5,2417.2,4.13701057]
[1749159030818,13.35641748,2417.7,2417.2,4.13701057]
[1749159030819,0.38502696,2417.4,2417.3,4.13669565]
[1749159030988,9.22018,2417.7,2417.4,4.13659528]
[1749159031415,9.22018,2417.7,2417.3,4.13675295]
[1749159031924,0.38530068,2417.6,2417.3,4.13675295]
[1749159032123,87.58931242,2417.0,2416.6,4.13803705]
[1749159032310,8.236,2416.9,2416.8,4.13770274]
[1749159034226,1.6289,2416.8,2415.1,10.0]
[1749159034529,1.6289,2416.8,2416.7,4.13787396]
[1749159034840,9.8619,2416.8,2416.7,4.13787396]
[1749159035139,10.24709654,2416.8,2416.6,4.1379384]
[1749159035340,0.38519654,2416.7,2416.6,4.1379384]
[1749159035526,0.38519654,2416.7,2416.6,4.13804518]
[1749159035695,9.8619,2416.8,2416.4,4.13824222]
[1749159035895,9.8619,2416.8,2416.4,4.13829913]
[1749159036092,90.28131242,2417.0,2416.9,4.13753154]
[1749159036414,98.51331242,2417.0,2416.3,5.78399943]
[1749159036801,98.51331242,2417.0,2416.4,4.13838768]
[1749159036984,98.51331242,2417.0,2416.9,4.13753154]
[1749159037193,98.89828806,2417.0,2416.9,4.13753154]
[1749159037412,98.51331242,2417.0,2416.9,4.13753154]
[1749159038149,95.81931242,2417.0,2416.9,4.13753154]
[1749159039551,96.53805797,2417.0,2416.3,5.78405409]
[1749159039753,99.9567296,2417.0,2416.5,4.13820522]
[1749159039952,95.81931242,2417.0,2416.7,4.13779429]
[1749159040127,99.92600427,2417.0,2416.6,4.13799642]
[1749159040328,0.38446195,2416.9,2416.7,4.13785862]
[1749159040535,0.38446195,2416.8,2416.6,4.1379501]
[1749159040734,0.38446195,2416.8,2416.6,4.13793183]
[1749159041034,99.92600427,2417.0,2416.7,4.13787396]
[1749159041244,8.227,2416.9,2416.8,4.13759708]
[1749159041629,8.61094465,2416.9,2416.8,4.13759708]
[1749159041829,8.227,2416.9,2416.8,4.13759708]
[1749159042552,8.227,2416.9,2416.0,1.5958]
[1749159042739,8.227,2416.9,2416.6,4.13790409]
[1749159042929,8.227,2416.9,2416.7,4.13783336]
[1749159043430,42.63213531,2416.5,2416.4,4.13838768]
[1749159043754,50.85713531,2416.5,2416.4,4.13838768]
[1749159044842,50.85613531,2416.5,2416.4,4.13838768]
[1749159045091,42.63213531,2416.5,2416.4,4.13838768]
[1749159045378,50.85513531,2416.5,2416.4,5.79958768]
[1749159045588,50.85513531,2416.5,2416.4,10.21144768]
[1749159045754,50.85513531,2416.5,2416.4,8.94658768]
[1749159046255,42.63213531,2416.5,2416.4,8.94658768]
[1749159046456,50.85413531,2416.5,2416.4,8.94658768]
[1749159046657,50.85413531,2416.5,2416.4,5.79958768]
[1749159046863,50.85413531,2416.5,2416.4,16.25426468]
[1749159047058,42.63213531,2416.5,2416.4,5.79958768]
[1749159047260,50.85313531,2416.5,2416.4,16.94926468]
[1749159047476,50.85313531,2416.5,2416.4,5.79958768]
[1749159049276,50.85313531,2416.5,2416.4,8.94658768]
[1749159049863,50.85313531,2416.5,2416.4,5.79958768]
[1749159050594,50.85313531,2416.5,2416.2,14.35596521]
[1749159050757,50.85313531,2416.5,2416.2,10.21723498]
[1749159050958,50.85313531,2416.5,2416.4,4.13838768]
[1749159051158,50.85313531,2416.5,2416.4,7.28538768]
[1749159051358,50.85313531,2416.5,2416.4,4.13838768]
[1749159055576,14.2097239,2416.0,2415.9,21.89048634]
[1749159055905,22.4207239,2416.0,2415.9,21.39238534]
[1749159056212,22.4207239,2416.0,2415.9,18.57828534]
[1749159056415,22.4207239,2416.0,2415.9,17.95838534]
[1749159056605,22.4207239,2416.0,2415.9,6.81022134]
[1749159057485,22.4207239,2416.0,2415.9,4.13922134]
[1749159063866,14.2097239,2416.0,2415.9,34.13922134]
[1749159064016,22.4117239,2416.0,2415.9,8.61501234]
[1749159064212,14.2097239,2416.0,2415.9,8.68691234]
[1749159064419,22.4107239,2416.0,2415.9,8.68691234]
[1749159064614,22.4107239,2416.0,2415.9,18.90414732]
[1749159065153,22.4097239,2416.0,2415.9,18.90414732]
[1749159065353,14.2097239,2416.0,2415.9,18.90414732]
[1749159065556,22.4097239,2416.0,2415.9,18.90414732]
[1749159065719,14.2097239,2416.0,2415.9,24.68295049]
[1749159065919,22.4087239,2416.0,2415.9,24.68295049]
[1749159066217,14.2097239,2416.0,2415.9,18.90414732]
[1749159066568,1.6419,2417.6,2417.5,4.13650465]
[1749159066874,9.8399,2417.6,2417.5,4.13650465]
[1749159067219,1.6419,2418.2,2418.0,4.13556042]
[1749159067448,8.62699,2418.1,2418.0,4.13556042]
[1749159067682,8.62699,2418.1,2417.8,4.13584931]
[1749159067683,8.62699,2418.1,2417.9,4.13573471]
[1749159068245,1.6419,2418.2,2418.1,4.13547826]
[1749159068687,9.8369,2418.2,2418.1,4.13547826]
[1749159068905,1.6419,2418.2,2418.0,4.13556847]
[1749159069053,1.6419,2418.2,2418.1,4.13547826]
[1749159069386,4.13399082,2419.0,2418.1,4.13547826]
[1749159069387,10.4415,2418.9,2418.8,4.13428146]
[1749159069745,1.5005,2418.9,2418.8,4.13428146]
[1749159069989,1.537,2419.2,2418.9,4.13404196]
[1749159070190,8.193,2419.1,2418.9,4.13404196]
[1749159070398,8.193,2419.1,2418.9,4.13404281]
[1749159070559,12.77595848,2419.2,2418.7,4.13440718]
[1749159070761,11.75423498,2419.0,2418.6,4.13454152]
[1749159070994,15.88819153,2419.0,2418.5,4.13468722]
[1749159071177,15.88819153,2419.0,2418.4,4.13484993]
[1749159071178,2.40811915,2418.9,2418.4,4.13484993]
[1749159071362,1.537,2418.7,2417.8,0.0719]
[1749159071562,1.537,2418.7,2418.4,4.13485091]
[1749159071963,1.537,2418.7,2418.4,4.13483526]
[1749159072592,8.188,2418.6,2418.4,4.13483526]
[1749159072774,8.188,2418.6,2417.8,0.0719]
[1749159073096,8.188,2418.6,2417.9,4.13577804]
[1749159073294,8.188,2418.6,2418.2,4.1351837]
[1749159073593,8.188,2418.6,2418.3,4.13512197]
[1749159074376,8.188,2418.6,2418.4,4.13486095]
[1749159074698,10.1822235,2418.6,2418.3,4.13504396]
[1749159075100,10.1822235,2418.6,2418.4,4.13488364]
[1749159075740,10.1822235,2418.6,2418.3,4.13504021]
[1749159075900,10.1822235,2418.6,2418.4,4.13494193]
[1749159076832,10.1822235,2418.6,2418.5,4.13479429]
[1749159076992,1.537,2418.7,2418.6,4.13462333]
[1749159077197,10.21723498,2419.1,2419.0,4.13393964]
[1749159077496,18.39823498,2419.1,2418.9,4.13398014]
[1749159077696,8.18,2419.0,2418.9,4.13398014]
[1749159078145,1.6131,2419.2,2419.1,4.13376875]
[1749159078432,9.7931,2419.2,2419.1,4.13376875]
[1749159078636,1.6131,2419.2,2419.1,4.13376875]
[1749159078969,2.648,2419.3,2419.2,4.13359788]
[1749159079298,10.827,2419.3,2419.2,4.13359788]
[1749159079831,10.826,2419.3,2419.2,4.13359788]
[1749159080528,10.21723498,2419.9,2419.3,4.13342702]
[1749159080696,1.5751,2420.2,2420.1,4.13206065]
[1749159080898,1.5751,2420.2,2419.2,0.0719]
[1749159080899,10.21723498,2420.4,2420.3,4.1317192]
[1749159081249,18.39223498,2420.4,2420.1,4.13196118]
[1749159081735,21.06679661,2420.4,2420.0,4.13214998]
[1749159081937,21.06679661,2420.4,2420.1,4.13198123]
[1749159082446,18.39223498,2420.4,2420.1,4.13198123]
[1749159082609,18.39223498,2420.4,2420.2,4.13186932]
[1749159082823,10.21723498,2420.4,2420.2,4.13186932]
[1749159083005,8.171,2420.3,2420.2,4.1317847]
[1749159083650,10.21723498,2420.4,2420.3,4.1317192]
[1749159083816,1.5751,2420.5,2420.4,4.1315485]
[1749159084002,8.17,2420.5,2420.4,4.1315485]
[1749159084203,10.21723498,2421.0,2420.9,4.13062432]
[1749159084620,18.38623498,2421.0,2420.9,4.13062432]
[1749159085219,18.38623498,2421.0,2420.0,4.1322314]
[1749159085417,18.38623498,2421.0,2420.8,4.13084385]
[1749159085938,18.38623498,2421.0,2420.7,4.13094845]
[1749159086143,18.38623498,2421.0,2420.8,4.13078712]
[1749159086301,18.38623498,2421.0,2420.1,4.13206065]
[1749159086514,10.21723498,2420.7,2419.8,4.13250742]
[1749159086736,8.164,2420.6,2420.4,4.13142838]
[1749159087010,8.164,2420.6,2419.9,4.13240216]
[1749159087011,95.8681298,2420.0,2419.9,4.13240216]
[1749159087211,104.0321298,2420.0,2419.9,4.13240216]
[1749159090415,104.0271298,2420.0,2419.9,4.13240216]
[1749159094022,95.8681298,2420.0,2419.9,4.13240216]
[1749159094228,104.0211298,2420.0,2419.9,4.20430216]
[1749159094842,95.8681298,2420.0,2419.9,4.20430216]
[1749159095042,104.0201298,2420.0,2419.9,4.20430216]
[1749159095268,104.0201298,2420.0,2419.9,4.13240216]
[1749159096350,95.8681298,2420.0,2419.9,4.13240216]
[1749159096660,104.0181298,2420.0,2419.9,4.13240216]
[1749159097663,95.8681298,2420.0,2419.9,4.13240216]
[1749159097828,95.8681298,2420.0,2419.9,4.20430216]
[1749159098164,104.0151298,2420.0,2419.9,4.20430216]
[1749159098361,102.0151298,2420.0,2419.9,4.20430216]
[1749159099058,93.8681298,2420.0,2419.9,4.20430216]
[1749159099366,102.0141298,2420.0,2419.9,4.20430216]
[1749159099952,93.8681298,2420.0,2419.9,14.42153714]
[1749159100465,93.8681298,2420.0,2419.9,4.20430216]
[1749159102070,102.0091298,2420.0,2419.9,14.42153714]
[1749159102444,93.8681298,2420.0,2419.9,14.42153714]
[1749159102838,93.7962298,2420.0,2419.9,14.42153714]
[1749159103041,93.7962298,2420.0,2419.9,14.88518113]
[1749159103569,93.5810029,2420.0,2419.9,14.88518113]
[1749159105671,66.84172942,2420.0,2419.9,14.88518113]
[1749159105968,54.44268739,2420.0,2419.9,15.25714882]
[1749159106138,46.17784907,2420.0,2419.9,15.25714882]
[1749159106337,41.12837971,2420.0,2419.9,17.26333612]
[1749159106539,28.74965002,2420.0,2419.9,15.45714882]
[1749159106737,20.48440477,2420.0,2419.9,15.81580507]
[1749159106941,12.21915952,2420.0,2419.9,15.45714882]
[1749159107162,2.86672024,2420.0,2419.9,15.45714882]
[1749159107375,1.5594,2422.3,2422.2,4.12847824]
[1749159107554,9.6914,2422.3,2422.2,4.12847824]
[1749159108278,9.6904,2422.3,2422.2,4.12847824]
[1749159111979,1.5594,2422.3,2422.2,4.12847824]
[1749159112279,8.125,2422.3,2422.2,4.12847824]
[1749159112658,9.737,2422.3,2422.2,4.12847824]
[1749159114081,9.737,2422.3,2422.1,4.12856435]
[1749159114378,9.737,2422.3,2420.6,4.13115428]
[1749159114379,9.737,2422.3,2421.1,0.49172732]
[1749159114683,10.7107,2422.3,2422.2,4.12847824]
[1749159114890,9.732,2422.3,2422.2,4.12847824]
[1749159115780,19.94923498,2422.3,2422.2,4.12847824]
[1749159117485,9.729,2422.3,2422.2,4.12847824]
[1749159117670,76.246633,2421.0,2420.4,12.25053846]
[1749159117876,76.246633,2421.0,2420.9,13.28498502]
[1749159118075,76.246633,2421.0,2420.9,17.41568021]
[1749159120199,72.11546287,2421.0,2420.9,17.41568021]
[1749159120487,63.85211738,2421.0,2420.9,4.58144523]
[1749159120691,63.85211738,2421.0,2420.9,17.41568021]
[1749159120887,55.58977558,2421.0,2420.9,17.41568021]
[1749159121190,55.58977558,2421.0,2420.9,16.96493017]
[1749159123155,55.58977558,2421.0,2420.9,17.41568021]
[1749159125166,55.58977558,2421.0,2420.9,16.96493017]
[1749159125395,55.58977558,2421.0,2420.9,4.13069519]
[1749159125605,63.69477558,2421.0,2420.9,6.74769519]
[1749159127867,55.58977558,2421.0,2420.9,6.74769519]
[1749159128316,0.2315682,2422.7,2421.0,4.13065962]
[1749159128470,0.2315682,2422.7,2422.6,4.12779658]
[1749159128668,8.3325682,2422.7,2422.6,5.78618827]
[1749159129070,0.2315682,2422.7,2422.6,5.78618827]
[1749159129270,0.2315682,2422.7,2422.6,6.79261229]
[1749159129607,0.2315682,2422.7,2422.6,7.45692228]
[1749159129770,0.2315682,2422.7,2422.6,14.34503156]
[1749159130506,1.6511,2423.9,2423.3,4.12660421]
[1749159130679,2.591,2424.1,2424.0,4.12541254]
[1749159130873,1.6511,2424.2,2424.1,4.12524235]
[1749159131071,0.2315682,2425.1,2425.0,4.12371134]
[1749159131282,10.9175682,2425.1,2425.0,4.12371134]
[1749159131509,4.3902682,2425.1,2425.0,4.12371134]
[1749159131907,12.4862682,2425.1,2425.0,4.12371134]
[1749159132537,1.8002682,2425.1,2425.0,4.12371134]
[1749159132894,8.3255682,2425.1,2425.0,7.61071134]
[1749159133090,0.2315682,2425.1,2425.0,7.61071134]
[1749159133298,8.3255682,2425.1,2425.0,7.61071134]
[1749159133502,0.2315682,2425.1,2425.0,7.61071134]
[1749159133917,8.3225682,2425.1,2425.0,7.61071134]
[1749159134319,0.2315682,2425.1,2425.0,7.61071134]
[1749159134695,0.66666667,2426.2,2426.1,4.12184163]
[1749159134898,0.66666667,2426.2,2426.1,32.79368461]
[1749159135129,0.66666667,2426.2,2426.1,4.12184163]
[1749159135375,0.2315682,2427.5,2426.2,10.0]
[1749159135536,16.0,2428.5,2426.3,10.0]
[1749159135537,14.37236465,2428.5,2426.3,10.0]
[1749159135707,2.44220829,2429.6,2426.3,10.0]
[1749159135708,0.37739435,2429.3,2429.1,0.2]
[1749159136041,10.41631756,2433.7,2433.2,20.10981423]
[1749159136042,1.5034,2433.3,2433.2,20.10981423]
[1749159136245,0.192735,2434.3,2434.2,4.10812587]
[1749159136397,0.192735,2434.3,2434.2,20.10812587]
[1749159136599,0.192735,2434.3,2434.2,21.05912007]
[1749159136823,0.192735,2434.3,2434.2,5.05912007]
[1749159137023,0.192735,2434.3,2434.1,4.10816868]
[1749159137024,10.147135,2434.3,2434.1,4.10816868]
[1749159137223,1.696135,2434.3,2434.2,4.10812587]
[1749159137409,10.177135,2434.3,2434.2,4.10812587]
[1749159137996,1.696135,2434.3,2434.2,4.10812587]
[1749159138197,1.696135,2434.3,2433.4,1.18865876]
[1749159138422,12.986135,2434.3,2433.3,4.10964533]
[1749159138622,1.2986135,2434.2,2433.4,20.1094045]
[1749159138837,11.409,2434.1,2433.6,16.0]
[1749159139013,11.409,2434.1,2433.3,1.18865876]
[1749159139222,9.6699,2434.0,2433.8,16.0]
[1749159139417,8.534,2433.9,2433.3,17.18865876]
[1749159139746,8.534,2433.9,2433.7,16.0]
[1749159140048,8.534,2433.9,2433.8,4.10880105]
[1749159140211,9.78949,2433.9,2433.1,16.0]
[1749159140411,9.78949,2433.9,2432.9,16.0]
[1749159140649,9.78949,2433.9,2432.6,4.11079888]
[1749159140807,12.38354961,2433.7,2432.5,4.11092763]
[1749159141008,16.49252577,2433.7,2432.0,4.1118421]
[1749159141221,10.77594961,2433.3,2432.4,4.11100779]
[1749159141547,1.6076,2434.4,2434.2,4.10812587]
[1749159141748,1.6076,2434.4,2432.9,4.11032101]
[1749159141749,8.858735,2434.3,2432.9,4.11032101]
[1749159141954,1.0466335,2434.2,2433.2,4.10966116]
[1749159142160,10.77594961,2434.0,2433.0,4.11010405]
[1749159142335,10.77594961,2434.0,2431.8,4.11206191]
[1749159142336,1.6076,2433.8,2432.4,4.11100172]
[1749159142523,95.88899828,2432.0,2431.9,4.11191303]
[1749159142725,104.56799828,2432.0,2431.9,4.11191303]
[1749159143131,104.56799828,2432.0,2431.9,4.45517657]
[1749159143329,107.55099828,2432.0,2431.9,4.11191303]
[1749159143532,107.55099828,2432.0,2431.9,20.11191303]
[1749159143733,107.55099828,2432.0,2431.9,4.11191303]
[1749159144016,107.54299828,2432.0,2431.9,4.11191303]
[1749159144416,107.53399828,2432.0,2431.9,4.11191303]
[1749159144971,104.56199828,2432.0,2431.9,4.11191303]
[1749159145474,95.88899828,2432.0,2431.9,4.11191303]
[1749159145772,104.56299828,2432.0,2431.9,4.11191303]
[1749159145951,95.88899828,2432.0,2431.9,4.11191303]
[1749159146134,104.55799828,2432.0,2431.9,6.31741303]
[1749159146324,95.88899828,2432.0,2431.9,4.11191303]
[1749159146523,104.55299828,2432.0,2431.9,4.11191303]
[1749159146721,95.88899828,2432.0,2431.9,4.11191303]
[1749159147057,95.88899828,2432.0,2431.9,42.23123703]
[1749159147432,79.43860962,2432.0,2431.9,42.23123703]
[1749159147948,67.100615,2432.0,2431.9,42.23123703]
[1749159148147,62.98822736,2432.0,2431.9,42.23123703]
[1749159148349,50.65105428,2432.0,2431.9,42.23123703]
[1749159148547,42.42622538,2432.0,2431.9,43.41989579]
[1749159148872,10.50541226,2432.0,2431.9,52.08289579]
[1749159149028,6.50551226,2432.0,2431.9,53.83888829]
[1749159149228,2.162488,2433.2,2433.1,31.35218014]
[1749159149563,4.0116335,2434.2,2434.1,4.10829464]
[1749159149761,11.629,2434.2,2434.1,4.10829464]
[1749159150066,11.629,2434.2,2432.9,4.11030149]
[1749159150229,11.629,2434.2,2433.4,4.10931051]
[1749159150434,5.6497666,2434.0,2433.2,4.10972005]
[1749159150633,1.5412,2434.0,2433.2,4.1097213]
[1749159150834,0.27233735,2433.9,2431.8,21.274146]
[1749159151060,1.5412,2434.0,2433.8,4.10880105]
[1749159151234,1.5412,2434.0,2433.9,4.10863223]
[1749159151435,10.2142,2434.0,2433.9,4.10863223]
[1749159151674,10.2142,2434.0,2432.0,1.15388045]
[1749159151829,1.02142,2433.9,2433.5,4.10929017]
[1749159152035,1.02142,2433.9,2431.9,4.11192607]
[1749159152036,1.02142,2433.9,2433.2,4.10965987]
[1749159152236,1.02142,2433.9,2432.1,4.11167303]
[1749159152438,1.123562,2433.8,2431.8,10.0]
[1749159152637,2.964,2433.7,2433.2,4.10965941]
[1749159152870,2.964,2433.7,2432.5,20.11099691]
[1749159153135,1.6218,2433.5,2433.1,16.0]
[1749159153362,1.6218,2433.5,2433.0,4.11000656]
[1749159153363,17.544,2433.4,2433.2,4.10964891]
[1749159153538,17.544,2433.4,2432.7,16.0]
[1749159153539,17.544,2433.4,2432.3,4.11133495]
[1749159153745,1.91658,2433.3,2433.2,4.10981423]
[1749159153953,17.544,2433.4,2433.3,4.10964533]